bitfinex/quotes_BTCUSD_20240908
["timestamp","ask_amount","ask_price","bid_price","bid_amount"]
[1725831230152,0.293401,54533.0,54524.0,0.36404743]
[1725831230153,0.146705,54531.0,54524.0,0.36404743]
[1725831230287,0.146705,54531.0,54527.0,0.146715]
[1725831230504,0.146705,54531.0,54528.0,0.00723111]
[1725831232801,0.1,54530.0,54528.0,0.01723111]
[1725831233018,0.1,54530.0,54528.0,0.16394411]
[1725831233919,0.1739,54531.0,54528.0,0.15394411]
[1725831234123,0.02875806,54530.0,54529.0,0.0688]
[1725831234359,0.12875806,54530.0,54528.0,0.16494411]
[1725831234544,0.12875806,54530.0,54529.0,0.00722809]
[1725831236791,0.02875806,54530.0,54529.0,0.00722809]
[1725831237034,0.02975806,54530.0,54529.0,0.01822809]
[1725831237239,0.001,54530.0,54529.0,0.01822809]
[1725831244354,0.002,54530.0,54529.0,0.02422809]
[1725831244797,0.002,54530.0,54529.0,0.02585609]
[1725831245217,0.03075789,54530.0,54529.0,0.17256609]
[1725831246495,0.03075789,54530.0,54529.0,0.02585609]
[1725831248153,0.03075789,54530.0,54529.0,1.0044316]
[1725831248487,0.002,54530.0,54529.0,1.0044316]
[1725831248685,0.002,54530.0,54529.0,1.2978526]
[1725831250131,0.002,54530.0,54529.0,1.46297647]
[1725831250971,0.001,54530.0,54529.0,1.45697647]
[1725831251381,0.002,54530.0,54529.0,1.46297647]
[1725831251750,0.001,54530.0,54529.0,1.45697647]
[1725831252137,0.000814,54532.0,54531.0,1.026938]
[1725831252543,0.000814,54532.0,54531.0,1.03413473]
[1725831252763,0.000814,54532.0,54531.0,1.03613473]
[1725831253330,0.000814,54532.0,54531.0,1.07404289]
[1725831253572,0.000814,54532.0,54531.0,1.08804289]
[1725831253773,0.000814,54532.0,54531.0,1.07404289]
[1725831253986,0.000814,54532.0,54531.0,1.07604289]
[1725831254352,0.000814,54532.0,54531.0,1.07404289]
[1725831254554,0.000814,54532.0,54531.0,1.08804289]
[1725831254972,0.000814,54532.0,54531.0,1.11923473]
[1725831255177,0.000814,54532.0,54531.0,1.13323473]
[1725831255406,0.000814,54532.0,54531.0,1.11923473]
[1725831256781,0.000814,54532.0,54531.0,1.13323473]
[1725831256782,0.001814,54532.0,54531.0,1.13323473]
[1725831257424,0.000814,54532.0,54531.0,1.11923473]
[1725831257635,0.001814,54532.0,54531.0,1.13323473]
[1725831261345,0.001814,54532.0,54531.0,1.23243473]
[1725831262864,0.001814,54532.0,54531.0,1.23443473]
[1725831263071,0.001814,54532.0,54531.0,1.23243473]
[1725831263278,0.001814,54532.0,54531.0,1.23443473]
[1725831263683,0.001814,54532.0,54531.0,1.52784573]
[1725831263888,0.001814,54532.0,54531.0,1.55084573]
[1725831264508,0.001814,54532.0,54531.0,1.54884573]
[1725831264937,0.001814,54532.0,54531.0,1.57084573]
[1725831265141,0.001814,54532.0,54531.0,1.56884573]
[1725831265591,0.001814,54532.0,54531.0,1.57084573]
[1725831267336,0.001814,54532.0,54531.0,1.86425673]
[1725831267522,0.000814,54544.0,54543.0,1.36293487]
[1725831267761,0.000814,54544.0,54543.0,1.38593487]
[1725831267965,0.000814,54544.0,54543.0,1.3930396]
[1725831269484,0.000814,54544.0,54543.0,1.4070396]
[1725831269693,0.000814,54544.0,54543.0,1.3930396]
[1725831269911,0.000814,54544.0,54543.0,1.4070396]
[1725831270371,0.000814,54544.0,54543.0,1.4210396]
[1725831270818,0.000814,54544.0,54543.0,1.4070396]
[1725831271260,0.000814,54544.0,54543.0,1.4210396]
[1725831272317,0.000814,54544.0,54543.0,1.34392385]
[1725831272805,0.000814,54544.0,54543.0,1.34592385]
[1725831277786,0.000814,54544.0,54543.0,1.33192385]
[1725831278012,0.000814,54544.0,54543.0,1.34592385]
[1725831278396,0.000814,54544.0,54543.0,1.33192385]
[1725831278601,0.000814,54544.0,54543.0,1.31792385]
[1725831278807,0.000814,54544.0,54543.0,1.34592385]
[1725831279045,0.000814,54544.0,54543.0,0.03510473]
[1725831279046,0.069514,54544.0,54543.0,0.03510473]
[1725831279286,0.000814,54544.0,54543.0,0.03510473]
[1725831279508,0.000814,54544.0,54543.0,0.18177773]
[1725831279740,0.000814,54544.0,54543.0,0.47512373]
[1725831279967,0.000814,54544.0,54543.0,0.76846973]
[1725831280201,0.000814,54544.0,54543.0,0.74046973]
[1725831280430,0.000814,54544.0,54543.0,0.47512373]
[1725831280869,0.000814,54544.0,54543.0,0.46112373]
[1725831281094,0.000814,54544.0,54543.0,0.47512373]
[1725831281809,0.000814,54544.0,54543.0,0.46112373]
[1725831282027,0.000814,54544.0,54543.0,0.47512373]
[1725831291538,0.19230346,54552.0,54544.0,0.0671]
[1725831291760,0.01918079,54559.0,54558.0,0.03]
[1725831291960,0.09137658,54571.0,54558.0,0.03]
[1725831291961,0.00081,54571.0,54562.0,0.93741812]
[1725831292164,0.00081,54571.0,54562.0,1.25366212]
[1725831292376,0.00081,54571.0,54562.0,1.2637925]
[1725831292781,0.00081,54571.0,54562.0,1.2617925]
[1725831293188,0.00081,54571.0,54562.0,1.2757925]
[1725831294046,0.00081,54571.0,54562.0,1.2897925]
[1725831294203,0.00081,54571.0,54562.0,1.36664769]
[1725831294400,0.00081,54571.0,54562.0,1.64589169]
[1725831294605,0.00081,54571.0,54562.0,1.33864769]
[1725831294825,0.00081,54571.0,54562.0,1.65989169]
[1725831295026,0.00081,54571.0,54562.0,1.64987881]
[1725831295426,0.00081,54571.0,54562.0,1.66387881]
[1725831295634,0.00081,54571.0,54562.0,1.35663481]
[1725831296009,0.23075122,54589.0,54576.0,0.293167]
[1725831296406,0.146556,54587.0,54581.0,0.14657]
[1725831296616,0.146566,54583.0,54582.0,0.01199738]
[1725831296816,0.146566,54583.0,54568.0,0.01]
[1725831296817,0.146566,54583.0,54573.0,0.293181]
[1725831297031,0.309469,54582.0,54576.0,0.146583]
[1725831297240,0.309469,54582.0,54577.0,0.01202754]
[1725831297443,0.309469,54582.0,54576.0,0.151583]
[1725831297644,0.309469,54582.0,54581.0,0.01]
[1725831297864,0.309469,54582.0,54581.0,0.02200341]
[1725831298566,0.309469,54582.0,54581.0,0.01200341]
[1725831298965,0.309469,54582.0,54577.0,0.014]
[1725831299199,0.309469,54582.0,54576.0,0.013]
[1725831299200,0.146571,54581.0,54576.0,0.159584]
[1725831299410,0.1629,54582.0,54581.0,0.014]
[1725831299411,0.309468,54582.0,54581.0,0.014]
[1725831299781,0.309468,54582.0,54581.0,0.02600341]
[1725831300180,0.34199882,54582.0,54581.0,0.027]
[1725831300430,0.63513482,54582.0,54581.0,0.027]
[1725831300639,0.309468,54582.0,54576.0,0.146584]
[1725831300864,0.293142,54581.0,54574.0,0.146589]
[1725831301069,0.146574,54580.0,54577.0,0.00801836]
[1725831301268,0.176538,54582.0,54576.0,0.146583]
[1725831301475,0.146571,54581.0,54578.0,0.00801434]
[1725831301710,0.146571,54581.0,54576.0,0.146583]
[1725831301917,0.146571,54581.0,54579.0,0.00801032]
[1725831302332,0.146571,54581.0,54577.0,0.014]
[1725831302541,0.146571,54581.0,54580.0,0.00800629]
[1725831302757,0.146571,54581.0,54576.0,0.146583]
[1725831302981,0.21289059,54581.0,54576.0,0.146583]
[1725831303203,0.21289059,54581.0,54577.0,0.00801836]
[1725831303417,0.146573,54580.0,54577.0,0.00801836]
[1725831303823,0.146573,54580.0,54576.0,0.013]
[1725831304082,0.146573,54580.0,54578.0,0.00801434]
[1725831304288,0.2081981,54580.0,54577.0,0.01202754]
[1725831304499,0.2081981,54580.0,54574.0,0.146588]
[1725831304701,0.2081981,54580.0,54577.0,0.014]
[1725831304848,0.146576,54579.0,54577.0,0.014]
[1725831305048,0.0616251,54580.0,54577.0,0.014]
[1725831305259,0.146574,54580.0,54578.0,0.014]
[1725831305661,0.146574,54580.0,54577.0,0.014]
[1725831305865,0.146574,54580.0,54577.0,0.028]
[1725831306021,0.146574,54580.0,54577.0,0.014]
[1725831306022,0.146579,54578.0,54577.0,0.014]
[1725831306232,0.146579,54578.0,54570.0,0.2932]
[1725831306233,0.146586,54576.0,54570.0,0.2932]
[1725831306445,0.146586,54576.0,54571.0,0.146597]
[1725831307344,0.293158,54578.0,54572.0,0.146593]
[1725831307689,0.146583,54577.0,54572.0,0.146593]
[1725831308528,0.146585,54576.0,54572.0,0.146593]
[1725831308738,0.08541037,54578.0,54573.0,0.146592]
[1725831309346,0.146582,54577.0,54573.0,0.146592]
[1725831310208,0.146582,54577.0,54573.0,0.174592]
[1725831310454,0.146585,54576.0,54573.0,0.014]
[1725831310643,0.146585,54576.0,54572.0,0.146594]
[1725831310867,0.146585,54576.0,54573.0,0.028]
[1725831311300,0.23199137,54578.0,54573.0,0.174592]
[1725831311601,0.146582,54577.0,54573.0,0.174592]
[1725831312185,0.146582,54577.0,54573.0,0.160592]
[1725831312578,0.146582,54577.0,54573.0,0.173592]
[1725831312979,0.146582,54577.0,54573.0,0.146592]
[1725831313445,0.146582,54577.0,54573.0,0.158592]
[1725831314160,0.146582,54577.0,54573.0,0.172592]
[1725831315747,0.144582,54577.0,54573.0,0.172592]
[1725831316197,0.144582,54577.0,54573.0,0.17422]
[1725831316842,0.439734,54579.0,54573.0,0.17422]
[1725831317046,0.14658,54578.0,54573.0,0.17422]
[1725831317699,0.14658,54578.0,54573.0,0.16222]
[1725831317906,0.14658,54578.0,54573.0,0.14822]
[1725831319042,0.14658,54578.0,54574.0,0.146589]
[1725831319883,0.146582,54577.0,54573.0,0.025628]
[1725831320112,0.146582,54577.0,54573.0,0.15922]
[1725831320334,0.146582,54577.0,54574.0,0.013]
[1725831320564,0.146582,54577.0,54574.0,0.024]
[1725831321037,0.146582,54577.0,54574.0,0.011]
[1725831322108,0.146582,54577.0,54573.0,0.14822]
[1725831322329,0.146582,54577.0,54573.0,0.16022]
[1725831322535,0.146582,54577.0,54573.0,0.17422]
[1725831322748,0.146582,54577.0,54573.0,0.14822]
[1725831323182,0.146582,54577.0,54574.0,0.026]
[1725831323430,0.146582,54577.0,54574.0,0.012]
[1725831323645,0.146582,54577.0,54573.0,0.16222]
[1725831323854,0.146582,54577.0,54573.0,0.17422]
[1725831325362,0.146582,54577.0,54573.0,0.16022]
[1725831325787,0.146582,54577.0,54574.0,0.014]
[1725831326019,0.146582,54577.0,54573.0,0.14822]
[1725831326240,0.146582,54577.0,54574.0,0.012]
[1725831327117,0.146582,54577.0,54573.0,0.14822]
[1725831327371,0.146582,54577.0,54573.0,0.16022]
[1725831327604,0.146582,54577.0,54574.0,0.014]
[1725831328058,0.147396,54577.0,54574.0,0.014]
[1725831329185,0.147396,54577.0,54574.0,0.012]
[1725831330863,0.147396,54577.0,54574.0,0.026]
[1725831337156,0.000814,54577.0,54576.0,0.524753]
[1725831337360,0.000814,54577.0,54576.0,0.891122]
[1725831337556,0.000814,54577.0,54576.0,1.217291]
[1725831337993,0.000814,54577.0,54576.0,1.51046]
[1725831338396,0.000814,54577.0,54576.0,1.53246]
[1725831338597,0.000814,54581.0,54580.0,0.03]
[1725831338813,0.16412558,54592.0,54586.0,0.178557]
[1725831338814,0.000814,54587.0,54586.0,0.178557]
[1725831339037,0.1381445,54596.0,54592.0,0.178541]
[1725831339038,0.05506377,54593.0,54592.0,0.178541]
[1725831339239,0.02872745,54596.0,54595.0,0.4716]
[1725831339454,0.02872745,54596.0,54595.0,1.240434]
[1725831339624,0.02872745,54596.0,54595.0,1.533501]
[1725831339836,0.02872745,54596.0,54595.0,1.535501]
[1725831340301,0.02872745,54596.0,54595.0,1.549501]
[1725831340962,0.00081,54599.0,54598.0,1.128678]
[1725831341179,0.00081,54599.0,54598.0,1.2396251]
[1725831341639,0.00081,54599.0,54598.0,1.2596251]
[1725831341855,0.00081,54599.0,54598.0,1.3300251]
[1725831342080,0.00081,54599.0,54598.0,1.69973282]
[1725831342299,0.05482287,54625.0,54615.0,0.0704]
[1725831342511,0.146455,54624.0,54617.0,0.146473]
[1725831342895,0.146455,54624.0,54618.0,0.14647]
[1725831343123,0.146456,54624.0,54616.0,0.292954]
[1725831343350,0.361184,54629.0,54618.0,0.00366174]
[1725831343351,0.0683,54629.0,54618.0,0.00366174]
[1725831343572,0.0683,54629.0,54622.0,0.146458]
[1725831344044,0.146447,54628.0,54622.0,0.146458]
[1725831344276,0.0683,54629.0,54620.0,0.146465]
[1725831344518,0.0683,54629.0,54617.0,0.25120382]
[1725831344519,0.292901,54626.0,54618.0,0.14647]
[1725831344749,0.292901,54626.0,54617.0,0.0866]
[1725831344750,0.146455,54624.0,54619.0,0.146468]
[1725831345677,0.146452,54626.0,54620.0,0.146466]
[1725831345902,0.1,54625.0,54620.0,0.146466]
[1725831347057,0.246453,54625.0,54620.0,0.159466]
[1725831347504,0.3072173,54625.0,54620.0,0.159466]
[1725831347732,0.246453,54625.0,54620.0,0.159466]
[1725831348199,0.246453,54625.0,54620.0,0.146466]
[1725831348628,0.246453,54625.0,54620.0,0.160466]
[1725831348848,0.246453,54625.0,54620.0,0.158466]
[1725831349067,0.1,54625.0,54624.0,0.146455]
[1725831349324,0.00081,54632.0,54624.0,0.146455]
[1725831349325,0.00081,54632.0,54627.0,0.146445]
[1725831349562,0.146437,54631.0,54627.0,0.146445]
[1725831349795,0.1,54630.0,54625.0,0.292901]
[1725831350023,0.00081,54632.0,54626.0,0.0915]
[1725831350253,0.00081,54632.0,54628.0,0.0679]
[1725831350505,0.00081,54632.0,54631.0,0.439311]
[1725831350971,0.00081,54632.0,54631.0,0.732185]
[1725831351200,0.00081,54632.0,54631.0,0.146437]
[1725831351433,0.00081,54632.0,54627.0,0.439338]
[1725831351676,0.146437,54631.0,54627.0,0.146446]
[1725831352384,0.00081,54632.0,54630.0,0.146438]
[1725831352825,0.00081,54632.0,54628.0,0.292889]
[1725831352826,0.00081,54632.0,54631.0,0.146437]
[1725831353738,0.00081,54632.0,54630.0,0.026]
[1725831353972,0.00081,54632.0,54631.0,0.439311]
[1725831354436,0.00081,54632.0,54631.0,0.732185]
[1725831355130,0.00081,54632.0,54631.0,0.746185]
[1725831355364,0.00081,54632.0,54631.0,0.760185]
[1725831355609,0.00081,54632.0,54631.0,0.732185]
[1725831355832,0.147244,54632.0,54631.0,0.028]
[1725831356309,0.147244,54632.0,54631.0,1.02348882]
[1725831356310,0.00081,54632.0,54631.0,1.02348882]
[1725831356557,0.00081,54632.0,54631.0,1.38406282]
[1725831356808,0.00081,54632.0,54631.0,1.35606282]
[1725831357045,0.00081,54632.0,54631.0,1.36706282]
[1725831357289,0.00081,54632.0,54631.0,1.39006282]
[1725831357980,0.00081,54632.0,54631.0,1.39806282]
[1725831358477,0.00081,54632.0,54631.0,1.70493682]
[1725831358694,0.00081,54632.0,54631.0,1.80793682]
[1725831358913,0.00081,54632.0,54631.0,1.81993682]
[1725831359145,0.00081,54636.0,54631.0,1.81993682]
[1725831359146,0.00081,54636.0,54635.0,0.178426]
[1725831359393,0.00081,54636.0,54635.0,1.11459253]
[1725831359612,0.00081,54636.0,54635.0,1.80029653]
[1725831360271,0.00013,54640.0,54639.0,1.347739]
[1725831360487,0.00013,54640.0,54639.0,1.69654282]
[1725831360938,0.146337,54668.0,54641.0,1.21877]
[1725831361164,0.292665,54670.0,54641.0,1.34177]
[1725831361393,0.146339,54668.0,54653.0,1.06839382]
[1725831361633,0.146339,54668.0,54653.0,1.38414982]
[1725831362143,0.14634,54667.0,54653.0,1.38414982]
[1725831362607,0.1,54666.0,54653.0,1.38414982]
[1725831362825,0.1,54666.0,54653.0,1.39814982]
[1725831363043,0.09581,54666.0,54658.0,0.01]
[1725831363282,0.146375,54654.0,54653.0,0.014]
[1725831363515,0.800675,54654.0,54653.0,0.028]
[1725831364176,0.800675,54654.0,54653.0,0.042]
[1725831364428,0.82936895,54654.0,54653.0,0.042]
[1725831364733,1.31633425,54654.0,54653.0,0.042]
[1725831364947,1.31633425,54654.0,54653.0,0.028]
[1725831365172,1.41633425,54654.0,54653.0,0.028]
[1725831365403,1.58093807,54654.0,54653.0,0.028]
[1725831365614,1.58093807,54654.0,54653.0,0.004]
[1725831366050,1.58093807,54654.0,54653.0,0.018]
[1725831366485,1.87368807,54654.0,54653.0,0.004]
[1725831366919,0.439246,54639.0,54638.0,0.55430836]
[1725831367376,0.146424,54636.0,54631.0,0.146436]
[1725831368220,0.292831,54639.0,54638.0,0.013]
[1725831368508,0.439246,54639.0,54638.0,0.013]
[1725831368730,0.292838,54638.0,54631.0,0.146436]
[1725831368924,0.146424,54636.0,54631.0,0.146436]
[1725831369582,0.0439262,54635.0,54629.0,0.0852]
[1725831369817,0.146443,54629.0,54624.0,0.4764]
[1725831370029,0.146434,54632.0,54631.0,0.028]
[1725831370672,0.146434,54632.0,54631.0,0.014]
[1725831370886,0.439302,54632.0,54631.0,0.014]
[1725831371098,0.88557309,54632.0,54631.0,0.014]
[1725831371544,0.81747,54632.0,54631.0,0.014]
[1725831371768,0.89127,54632.0,54631.0,0.028]
[1725831372402,1.184138,54632.0,54631.0,0.014]
[1725831372595,1.284138,54632.0,54631.0,0.014]
[1725831372812,1.4125518,54632.0,54631.0,0.026]
[1725831373023,0.146464,54621.0,54619.0,0.001626]
[1725831373235,0.146466,54620.0,54619.0,0.001626]
[1725831373672,0.80153,54620.0,54619.0,0.001626]
[1725831373882,0.90668338,54620.0,54619.0,0.001626]
[1725831374088,1.3642192,54620.0,54619.0,0.001626]
[1725831374317,1.0712872,54620.0,54619.0,0.001626]
[1725831374818,1.0712872,54620.0,54619.0,0.015626]
[1725831375079,1.4642192,54620.0,54619.0,0.015626]
[1725831375992,1.4642192,54620.0,54619.0,0.001626]
[1725831376452,1.4642192,54620.0,54619.0,0.003626]
[1725831376892,1.4642192,54620.0,54619.0,0.001626]
[1725831377112,1.4642192,54620.0,54619.0,0.003626]
[1725831377341,1.4642192,54620.0,54619.0,0.007626]
[1725831377589,1.4642192,54620.0,54619.0,0.001626]
[1725831377787,1.4642192,54620.0,54619.0,0.003626]
[1725831378741,1.5506192,54620.0,54619.0,0.001626]
[1725831379417,1.38601538,54620.0,54619.0,0.001626]
[1725831379645,1.5516192,54620.0,54619.0,0.001626]
[1725831379869,1.5516192,54620.0,54619.0,0.002626]
[1725831380126,1.5506192,54620.0,54619.0,0.002626]
[1725831380357,1.5556192,54620.0,54619.0,0.001626]
[1725831380585,1.5586192,54620.0,54619.0,0.001626]
[1725831380811,1.5556192,54620.0,54619.0,0.001626]
[1725831381284,1.5556192,54620.0,54619.0,0.002626]
[1725831381521,1.5506192,54620.0,54619.0,0.001626]
[1725831381748,1.5536192,54620.0,54619.0,0.001626]
[1725831382824,0.146498,54608.0,54607.0,0.09169883]
[1725831383712,0.439495,54608.0,54607.0,0.09169883]
[1725831383964,0.146503,54607.0,54602.0,0.146512]
[1725831384854,0.146503,54607.0,54599.0,0.293042]
[1725831384855,0.146503,54607.0,54603.0,0.146512]
[1725831385341,0.146503,54607.0,54601.0,0.293033]
[1725831385553,0.146503,54607.0,54602.0,0.146513]
[1725831385769,0.146503,54607.0,54602.0,0.233513]
[1725831386202,0.146503,54607.0,54602.0,0.243513]
[1725831386401,0.146503,54607.0,54602.0,0.255513]
[1725831387081,0.19331886,54615.0,54614.0,0.146482]
[1725831387082,0.02871504,54615.0,54614.0,0.146482]
[1725831387304,0.02871504,54615.0,54614.0,0.532047]
[1725831387530,0.02871504,54615.0,54614.0,0.602947]
[1725831387794,0.146468,54620.0,54615.0,0.146479]
[1725831388026,0.146468,54620.0,54616.0,0.146476]
[1725831388252,0.292923,54622.0,54616.0,0.146476]
[1725831388655,0.146467,54620.0,54616.0,0.146476]
[1725831388895,0.146467,54620.0,54614.0,0.1635]
[1725831388896,0.1,54619.0,54617.0,0.146473]
[1725831389106,0.246464,54621.0,54617.0,0.146473]
[1725831389751,0.146467,54620.0,54615.0,0.292957]
[1725831390180,0.1,54621.0,54616.0,0.146475]
[1725831390638,0.1,54621.0,54617.0,0.01]
[1725831390841,0.1,54621.0,54616.0,0.155475]
[1725831391049,0.246464,54621.0,54616.0,0.155475]
[1725831391960,0.246464,54621.0,54616.0,0.146475]
[1725831392802,0.246464,54621.0,54617.0,0.146474]
[1725831394088,0.146466,54620.0,54616.0,0.157477]
[1725831394579,0.146466,54620.0,54616.0,0.146477]
[1725831394764,0.146466,54620.0,54617.0,0.011]
[1725831395015,0.146466,54620.0,54617.0,0.019]
[1725831395223,0.146466,54620.0,54617.0,0.008]
[1725831395437,0.146466,54620.0,54615.0,0.292957]
[1725831395438,0.02871083,54625.0,54624.0,0.439366]
[1725831395695,0.02871083,54625.0,54624.0,0.509866]
[1725831396133,0.02871083,54625.0,54624.0,0.303355]
[1725831396364,0.02871083,54625.0,54624.0,0.596266]
[1725831396593,0.02871083,54625.0,54624.0,0.1609]
[1725831397049,0.02871083,54625.0,54624.0,0.1749]
[1725831397493,0.02871083,54625.0,54624.0,0.1609]
[1725831397706,0.02871083,54625.0,54624.0,0.321355]
[1725831397920,0.02871083,54625.0,54624.0,0.317355]
[1725831398349,0.02871083,54625.0,54624.0,0.345355]
[1725831398759,0.02871083,54625.0,54624.0,0.331355]
[1725831399123,0.02871083,54625.0,54624.0,0.343355]
[1725831399339,0.02871083,54625.0,54624.0,0.636266]
[1725831399547,0.02871083,54625.0,54624.0,0.624266]
[1725831399755,0.02871083,54625.0,54624.0,0.638266]
[1725831399949,0.02871083,54625.0,54624.0,0.610266]
[1725831400356,0.02871083,54625.0,54624.0,0.624266]
[1725831401018,0.02871083,54625.0,54624.0,0.610266]
[1725831401510,0.02871083,54625.0,54624.0,0.916177]
[1725831401749,0.32192,54638.0,54633.0,0.146431]
[1725831401980,0.292828,54640.0,54632.0,0.0847]
[1725831401981,0.146423,54636.0,54632.0,0.0847]
[1725831402419,0.146426,54635.0,54632.0,0.0847]
[1725831402632,0.146423,54637.0,54632.0,0.231134]
[1725831402852,0.146424,54636.0,54632.0,0.231134]
[1725831403082,0.146424,54636.0,54633.0,0.006]
[1725831403344,0.146419,54638.0,54634.0,0.0706]
[1725831403584,0.1,54644.0,54635.0,0.0911]
[1725831403794,0.1,54644.0,54643.0,0.146404]
[1725831404014,0.1,54648.0,54645.0,0.146398]
[1725831404255,0.1,54648.0,54640.0,0.292821]
[1725831404256,0.146391,54648.0,54644.0,0.146401]
[1725831404488,0.1,54649.0,54644.0,0.146401]
[1725831404489,0.1,54647.0,54644.0,0.146401]
[1725831405377,0.0897,54652.0,54647.0,0.146393]
[1725831405378,0.146381,54652.0,54647.0,0.146393]
[1725831405612,0.217475,54654.0,54649.0,0.146387]
[1725831405867,0.146379,54653.0,54648.0,0.14639]
[1725831406113,0.146386,54650.0,54645.0,0.146398]
[1725831406342,0.146386,54650.0,54639.0,0.29283]
[1725831406343,0.146408,54642.0,54637.0,0.14642]
[1725831406779,0.146408,54642.0,54638.0,0.146418]
[1725831406999,0.292807,54644.0,54637.0,0.146418]
[1725831407209,0.146405,54643.0,54637.0,0.146418]
[1725831407478,0.292807,54644.0,54637.0,0.146418]
[1725831407479,0.146408,54642.0,54637.0,0.146418]
[1725831407691,0.146408,54642.0,54637.0,0.160418]
[1725831407935,0.29279,54647.0,54635.0,0.0853]
[1725831407936,0.146405,54643.0,54635.0,0.0853]
[1725831408123,0.146405,54643.0,54638.0,0.160417]
[1725831408410,0.146405,54643.0,54638.0,0.146417]
[1725831408826,0.146407,54642.0,54638.0,0.146417]
[1725831409740,0.146407,54642.0,54637.0,0.014]
[1725831409959,0.146407,54642.0,54637.0,0.14642]
[1725831410422,0.146407,54642.0,54638.0,0.014]
[1725831410610,0.146407,54642.0,54637.0,0.14642]
[1725831410867,0.146407,54642.0,54637.0,0.16042]
[1725831411126,0.146407,54642.0,54638.0,0.013]
[1725831411578,0.146407,54642.0,54637.0,0.16042]
[1725831411802,0.146407,54642.0,54637.0,0.17342]
[1725831412026,0.3513457,54647.0,54637.0,0.17342]
[1725831412027,0.29279,54647.0,54641.0,0.146408]
[1725831412254,0.146398,54646.0,54641.0,0.146409]
[1725831412481,0.146393,54648.0,54643.0,0.146404]
[1725831412706,0.146394,54647.0,54643.0,0.146404]
[1725831413853,0.146394,54647.0,54643.0,0.156404]
[1725831415650,0.146394,54647.0,54643.0,0.163404]
[1725831416847,0.146394,54647.0,54643.0,0.153404]
[1725831417079,0.146394,54647.0,54643.0,0.163404]
[1725831417312,0.146394,54647.0,54644.0,0.0681]
[1725831418946,0.146393,54648.0,54645.0,0.0906]
[1725831419935,0.146394,54647.0,54645.0,0.0906]
[1725831420401,0.146394,54647.0,54645.0,0.011]
[1725831420856,0.292778,54649.0,54645.0,0.011]
[1725831421082,0.146392,54648.0,54644.0,0.155402]
[1725831421312,0.146392,54648.0,54645.0,0.012]
[1725831421775,0.146392,54648.0,54645.0,0.021]
[1725831422222,0.146392,54648.0,54645.0,0.012]
[1725831422672,0.146392,54648.0,54645.0,0.02]
[1725831423201,0.292778,54649.0,54645.0,0.008]
[1725831423449,0.146395,54647.0,54645.0,0.008]
[1725831423922,0.146395,54647.0,54645.0,0.019]
[1725831424350,0.146395,54647.0,54643.0,0.146402]
[1725831424560,0.439169,54649.0,54645.0,0.017]
[1725831424788,0.146392,54648.0,54645.0,0.017]
[1725831425034,0.146392,54648.0,54645.0,0.01]
[1725831425269,0.146394,54647.0,54645.0,0.01]
[1725831425482,0.146394,54647.0,54645.0,0.019]
[1725831425916,0.000815,54648.0,54644.0,0.146401]
[1725831426159,0.147206,54648.0,54645.0,0.012]
[1725831426444,0.292767,54651.0,54645.0,0.012]
[1725831426646,0.146392,54648.0,54645.0,0.02]
[1725831426861,0.146392,54648.0,54642.0,0.292812]
[1725831427084,0.146392,54648.0,54644.0,0.146401]
[1725831427302,0.146392,54648.0,54644.0,0.157401]
[1725831427532,0.146392,54648.0,54644.0,0.146401]
[1725831427746,0.146392,54648.0,54645.0,0.011]
[1725831428397,0.292767,54651.0,54645.0,0.016]
[1725831428572,0.146389,54649.0,54645.0,0.016]
[1725831428813,0.146392,54648.0,54645.0,0.011]
[1725831429017,0.146392,54648.0,54643.0,0.146403]
[1725831429446,0.147392,54648.0,54644.0,0.01]
[1725831429656,0.146392,54648.0,54645.0,0.008]
[1725831430088,0.147392,54648.0,54645.0,0.018]
[1725831430302,0.146392,54648.0,54645.0,0.008]
[1725831430750,0.235496,54646.0,54644.0,0.005]
[1725831430966,1.196593,54645.0,54644.0,0.005]
[1725831431454,0.73201,54644.0,54643.0,0.007]
[1725831431667,1.285714,54644.0,54643.0,0.007]
[1725831431881,0.29287,54632.0,54623.0,0.858514]
[1725831432114,0.146436,54632.0,54626.0,0.2929]
[1725831432313,0.146436,54632.0,54627.0,0.146447]
[1725831433436,0.146437,54631.0,54627.0,0.152447]
[1725831433867,0.146437,54631.0,54627.0,0.006]
[1725831434336,0.146437,54631.0,54624.0,0.146455]
[1725831434547,0.146437,54631.0,54627.0,0.008]
[1725831434751,0.147437,54631.0,54627.0,0.008]
[1725831434959,0.147437,54631.0,54627.0,0.014]
[1725831435416,0.146439,54630.0,54627.0,0.008]
[1725831435625,0.001,54631.0,54627.0,0.008]
[1725831436343,0.16047392,54632.0,54624.0,0.152455]
[1725831436565,0.26160257,54632.0,54624.0,0.152455]
[1725831436816,0.001,54630.0,54627.0,0.009]
[1725831437045,0.146437,54631.0,54624.0,0.146455]
[1725831437265,0.146437,54631.0,54627.0,0.006]
[1725831437695,0.147437,54631.0,54627.0,0.014]
[1725831437980,0.14644,54630.0,54627.0,0.014]
[1725831438164,0.146442,54629.0,54627.0,0.008]
[1725831438600,0.001,54630.0,54627.0,0.018]
[1725831439041,0.147439,54630.0,54627.0,0.018]
[1725831439298,0.147439,54630.0,54627.0,0.01]
[1725831439919,0.146439,54630.0,54624.0,0.011]
[1725831440124,0.001,54629.0,54627.0,0.011]
[1725831440535,0.146439,54630.0,54623.0,0.235658]
[1725831440953,0.147439,54630.0,54627.0,0.01]
[1725831441154,0.148439,54630.0,54627.0,0.022]
[1725831441368,0.147439,54630.0,54627.0,0.012]